Cogmind - Beta 12 @@@ ROGUE MODE // 2023.12.10 @ 14:51:50 Player: zapruda Result: Destroyed by Y-45 Defender with Beam Rifle Performance ------------- Evolutions (1) 500 Regions Visited (2) 400 Robots Destroyed (14) 70 Value Destroyed (304) 304 Prototype IDs (0) 0 Alien Tech Used (0) 0 Bonus (0) 0 TOTAL SCORE: 1274 Bonus ------- None Cogmind --------- Core Integrity 0/400 Matter 278/300 Energy 100/100 System Corruption 0% Temperature Cool (85) Movement Core (250) Ox4 Location -9/Materials Parts ------- > --- POWER (1) -------- (None) > --- PROPULSION (4) --- (None) > --- UTILITY (2) ------ Medium Storage Unit > --- WEAPON (2) ------- Heavy Hammer > --- INVENTORY (10) --- Small Storage Unit Propulsion Shielding Weapon Shielding Hacking Suite Rocket Launcher Peak State ------------ > --- POWER ------------ Light Ion Engine > --- PROPULSION ------- Hover Unit Hover Unit Hover Unit Hover Unit > --- UTILITY ---------- Medium Storage Unit Core Shielding > --- WEAPON ----------- Medium Laser Improved Light Cannon > --- INVENTORY -------- Improved Ion Engine Hover Unit Hover Unit Hover Unit Hover Unit Small Storage Unit Propulsion Shielding Weapon Shielding Hacking Suite Rocket Launcher [Rating: 11] Favorites ----------- Power Ion Engine Engine Ion Engine Propulsion Hover Unit Leg Aluminum Leg Hover Unit Hover Unit Utility Core Shielding Storage Medium Storage Unit Protection Core Shielding Weapon Medium Laser Energy Gun Medium Laser Ballistic Cannon Improved Light Cannon Impact Weapon Heavy Hammer Build | -11 -10 -9 ------- Run | Jun Mat Mat Slots Evolved 2 | . . 2 Power . | . . . Propulsion 2 | . . 2 Utility . | . . . Weapon . | . . . Parts Attached 23 | . 5 18 Power 4 | . . 4 Engine 4 | . . 4 Core . | . . . Reactor . | . . . Propulsion 14 | . 3 11 Treads . | . . . Leg . | . . . Wheel . | . . . Hover 14 | . 3 11 Flight . | . . . Utility 2 | . 2 . Device . | . . . Storage 1 | . 1 . Processor . | . . . Hackware . | . . . Protection 1 | . 1 . Artifact . | . . . Weapon 3 | . . 3 Energy Gun 1 | . . 1 Energy Cannon . | . . . Ballistic Gun . | . . . Ballistic Cannon 1 | . . 1 Launcher . | . . . Special Weapon . | . . . Impact Weapon 1 | . . 1 Slashing Weapon . | . . . Piercing Weapon . | . . . Special Melee Weapon . | . . . Unidentified Prototypes . | . . . Parts Lost 16 | . . 16 Power 4 | . . 4 Propulsion 8 | . . 8 Utility 1 | . . 1 Weapon 3 | . . 3 Highest Loss Streak 12 | . . 12 To Critical Strikes . | . . . Average Slot Usage (%) 87 | . 90 83 Engine 11 | . 14 8 Leg 3 | . 5 . Hover 27 | . 21 35 Storage 12 | . 14 11 Protection 7 | . 6 10 Energy Gun 21 | . 28 11 Ballistic Cannon 1 | . . 4 Naked Turns . | . . . Heaviest Build 20 | 14 20 20 Greatest Support 24 | 20 20 24 Greatest Overweight (x) 4 | . 4 1 Average Overweight (x) . | . . . Largest Inventory Capacity 10 | 8 10 10 Average Capacity 9 | 8 8 10 Most Carried 10 | 6 10 10 Average Carried 7 | 6 7 8 Final Capacity 10 | 8 10 10 Final Carried 10 | 6 10 5 Class Distribution -------------------- 100% | Mutant Dominant Class ---------------- Mutant | -10/Materials Mutant | -9/Materials Resources | -11 -10 -9 ----------- Run | Jun Mat Mat Matter Collected 433 | 200 34 199 Remotely . | . . . Salvage Created 494 | . 208 286 Parts 36 | . 12 24 Haulers Intercepted 1 | . 1 . Recyclers Shooed . | . . . Parts Field Recycled . | . . . Retrieved Matter . | . . . Parts Self-Destructed . | . . . Prevented . | . . . Kills | -11 -10 -9 ------- Run | Jun Mat Mat Combat Hostiles Destroyed 9 | . . 9 Guns 3 | . . 3 Cannons 6 | . . 6 Classes Destroyed 7 | . 3 4 Tunneler 1 | . . 1 Hauler 1 | . 1 . Recycler 2 | . 2 . Operator 1 | . 1 . Swarmer 3 | . . 3 Grunt 3 | . . 3 Sentry 3 | . . 3 Best Kill Streak 5 | . 2 5 Combat Bots Only 5 | . . 5 Max Kills in Single Turn 1 | . 1 1 Gunslinging . | . . . Exploded . | . . . Melee . | . . . Uniques/NPCs Destroyed . | . . . Combat | -11 -10 -9 -------- Run | Jun Mat Mat Damage Taken 1435 | . . 1435 Core 400 | . . 400 Absorbed by Shields . | . . . Redirected to Shielding 50 | . . 50 Core Remaining (%) 100 | 100 100 . Volleys Fired 42 | . 5 37 Largest 2 | . 2 2 Hottest 90 | . 90 90 Shots Fired 60 | . 10 50 Gun 32 | . 10 22 Cannon 28 | . . 28 Launcher . | . . . Special . | . . . Kinetic 28 | . . 28 Thermal 19 | . 5 14 Explosive . | . . . Electromagnetic 13 | . 5 8 Robot Hit Streak 9 | . 7 9 Robot Miss Streak 3 | . 1 3 Penetration Max . | . . . Secondary Targets . | . . . Shots Hit Robots 41 | . 8 33 Core Hits 22 | . 7 15 Critical Kills . | . . . Critical Parts Destroyed . | . . . Critical Strikes 5 | . . 5 Burn 5 | . . 5 Melee Attacks 1 | . . 1 Impact 1 | . . 1 Slashing . | . . . Piercing . | . . . Sneak Attacks . | . . . Combat Hostiles . | . . . Follow-up Attacks . | . . . Damage Inflicted 757 | . 114 643 Guns 323 | . 114 209 Cannons 374 | . . 374 Explosions 20 | . . 20 Melee 32 | . . 32 Ramming 8 | . . 8 Kinetic 374 | . . 374 Thermal 185 | . 37 148 Explosive . | . . . Electromagnetic 158 | . 77 81 Impact 32 | . . 32 Slashing . | . . . Piercing . | . . . Highest Corruption . | . . . Average Corruption . | . . . Corruption Purged . | . . . Corruption Blocked . | . . . Overload Shots . | . . . Overflow Damage . | . . . Projectiles . | . . . Explosions . | . . . Melee . | . . . Knockbacks 5 | . . 5 Impact . | . . . Kinetic 4 | . . 4 Secondary 1 | . . 1 Self-Inflicted Damage 4 | . . 4 Shots . | . . . Rammed 2 | . . 2 Targets Rammed 2 | . . 2 Kicked . | . . . Crushed . | . . . Highest Temperature 228 | . 36 228 Average Temperature 64 | . 18 74 Received Heat Transfer 513 | . . 513 Effects 1 | . . 1 Interference 1 | . . 1 Siege Activations . | . . . Robots Corrupted . | . . . Combat Hostiles . | . . . Parts Fried . | . . . Impact Corruptions . | . . . Robots Melted . | . . . Combat Hostiles . | . . . Parts Melted 4 | . . 4 Heat Transferred 901 | . 111 790 Parts Sabotaged . | . . . Parts Stolen . | . . . Parts Stripped . | . . . Power Chain Reactions 1 | . . 1 Missiles Intercepted . | . . . Alert | -11 -10 -9 ------- Run | Jun Mat Mat Peak Influence 215 | . 68 215 Initial 28 | . . 28 Average 75 | . 37 130 Maximum Alert Level 1 | . . 1 Low Security (%) 96 | 100 100 90 Level 1 3 | . . 9 Level 2 . | . . . Level 3 . | . . . Level 4 . | . . . Level 5 . | . . . High Security . | . . . Max Security . | . . . Squads Dispatched 2 | . 1 1 Investigation 2 | . 1 1 Extermination . | . . . Reinforcement . | . . . Assault . | . . . Garrison . | . . . Intercept . | . . . Searches Triggered . | . . . Construction Impeded . | . . . Haulers Reinforced . | . . . Active Scanning Responses . | . . . Cargo Convoy Interrupts . | . . . Stealth | -11 -10 -9 --------- Run | Jun Mat Mat Distress Signals 1 | . . 1 Communications Jammed . | . . . Distress Signals . | . . . Times Spotted 17 | . 3 14 Peak Tracking Total 10 | . 2 10 Tactical Retreats 1 | . . 1 Traps | -11 -10 -9 ------- Run | Jun Mat Mat Traps Triggered 3 | . 1 2 Indirectly . | . . . Trap Hack Attempts . | . . . Triggered . | . . . Disarmed . | . . . Reprogrammed . | . . . Reused . | . . . Traps Extracted . | . . . Installed . | . . . Triggered 1 | . 1 . Machines | -11 -10 -9 ---------- Run | Jun Mat Mat Machines Disabled . | . . . Max in Single Turn . | . . . Machines Repaired . | . . . Machines Sabotaged . | . . . Overloaded Fab Kills . | . . . Hacking | -11 -10 -9 --------- Run | Jun Mat Mat Machines Accessed 2 | . 1 1 Terminals 2 | . 1 1 Fabricators . | . . . Repair Stations . | . . . Recycling Units . | . . . Scanalyzers . | . . . Garrison Access . | . . . Total Hacks 6 | . 3 3 Successful 1 | . 1 . Failed 5 | . 2 3 Catastrophic 2 | . . 2 Database Lockouts . | . . . Manual 6 | . 3 3 Terminals 6 | . 3 3 Fabricators . | . . . Repair Stations . | . . . Recycling Units . | . . . Scanalyzers . | . . . Garrison Access . | . . . Terminal Hacks . | . . . Fabricator Hacks . | . . . Repair Station Hacks . | . . . Recycling Unit Hacks . | . . . Scanalyzer . | . . . Garrison Access Hacks . | . . . Unauthorized Hacks 1 | . 1 . Terminals 1 | . 1 . Assimilate 1 | . 1 . Fabricators . | . . . Repair Stations . | . . . Recycling Units . | . . . Scanalyzers . | . . . Garrison Access . | . . . Data Cores Recovered . | . . . Used . | . . . Hacking Detections 2 | . 1 1 Full Trace Events 2 | . 1 1 Feedback Events . | . . . Feedback Blocked . | . . . Robot Schematics Acquired . | . . . Robots Built . | . . . Authchips . | . . . Time . | . . . Total Robot Build Rating . | . . . Part Schematics Acquired . | . . . Parts Built . | . . . Authchips . | . . . Time . | . . . Total Part Build Rating . | . . . Parts Repaired . | . . . Time . | . . . Parts Recycled . | . . . Recycled Matter . | . . . Retrieved Matter . | . . . Retrieved Components . | . . . Parts Scanalyzed . | . . . Part Schematics Acquired . | . . . Parts Damaged . | . . . Bothacking | -11 -10 -9 ------------ Run | Jun Mat Mat Used RIF Installer . | . . . Robots Hacked . | . . . Non-combat . | . . . Combat . | . . . Robot Hacks Applied . | . . . Relay Couplers Released . | . . . Fabnet Peak Effective % . | . . . Robots Rewired . | . . . Allies Hacked . | . . . Hacks Repelled . | . . . Allies | -11 -10 -9 -------- Run | Jun Mat Mat Total Allies . | . . . Largest Group . | . . . Highest-Rated Group . | . . . Highest-Rated Ally . | . . . Total Orders . | . . . Ally Attacks . | . . . Total Damage . | . . . Kills . | . . . Allies Corrupted . | . . . Allies Melted . | . . . Intel | -11 -10 -9 ------- Run | Jun Mat Mat Robot Analysis Total . | . . . Derelict Logs Recovered . | . . . Drone Launches . | . . . Drone Recoveries . | . . . Exploration | -11 -10 -9 ------------- Run | Jun Mat Mat Turns Passed 619 | 3 361 255 Spaces Moved 466 | 3 271 192 Core 1 | . 1 . Treads . | . . . Legs 56 | 3 53 . Wheels . | . . . Hover 409 | . 217 192 Flight . | . . . Fastest Speed 48 | 120 116 48 Average Speed 92 | 120 120 52 Slowest Speed 250 | 120 250 116 Overloaded Moves . | . . . Propulsion Burnouts . | . . . Robots Hopped . | . . . Cave-ins Triggered . | . . . Exploration Rate (%) 23 | 2 44 25 Regions Visited 2 Branch Regions . Pre-discovered Areas . | . . . Known Exits Taken . | . . . Unknown Exits Taken 2 | 1 1 . Scrap Searched . | . . . Spaces Dug . | . . . Terrain Destroyed 6 | . . 6 Melee . | . . . Projectile 2 | . . 2 AOE 4 | . . 4 Terrain Rammed . | . . . Walls Destroyed . | . . . Machines Disabled . | . . . Actions | -11 -10 -9 --------- Run | Jun Mat Mat Total 593 | 2 297 294 Wait 32 | . . 32 Move 464 | 2 270 192 Hop . | . . . Pick Up 17 | . 10 7 Fast Attach 7 | . 3 4 Attach 11 | . 1 10 Detach . | . . . Swap 5 | . 1 4 Drop 12 | . 7 5 Fire 42 | . 5 37 Melee 1 | . . 1 Ram 2 | . . 2 Kick . | . . . Crush . | . . . Escape Stasis . | . . . Rewire . | . . . Trap . | . . . Miscellaneous . | . . . Route ------- -11/Junkyard -10/Materials -9/Materials History --------- Turn | Location | Event 1 | -11/Junkyard | Discovered new exit (range 0) 4 | -11/Junkyard | Entered Materials 302 | -10/Materials | Build established: Mutant 318 | -10/Materials | Discovered new exit (range 11) 365 | -10/Materials | Entered another Materials area 365 | -9/Materials | Evolved 2 slots: Propulsion x2 512 | -9/Materials | Lost 4 parts (2p1n1w) 597 | -9/Materials | Core integrity fell below 50% 612 | -9/Materials | Core integrity fell below 20% 620 | -9/Materials | Destroyed by Y-45 Defender with Beam Rifle Last Messages --------------- 00580_ U-05 Engineer builds a Wall. 00584_ G-34 Mercenary knocked back. 00588_ S-10 Pest knocked back. 00588_ Hover Unit destroyed. 00590_ S-10 Pest destroyed. 00591_ K-01 Serf collects debris. 00594_ G-34 Mercenary destroyed. 00595_ Acquired 28 matter. 00595_ Hover Unit destroyed. 00599_ Critical hit (Burn: +37). 00601_ Hover Unit destroyed. 00602_ Atomic Centrifuge disabled. 00603_ Core Shielding destroyed. 00604_ G-34 Mercenary destroyed. 00605_ Imp. Ion Engine destroyed. 00606_ Y-45 Defender destroyed. 00607_ Acquired 45 matter. 00610_ Critical hit (Burn: +37). 00616_ Imp. Light Cannon destroyed. 00617_ Critical hit (Burn: +37). Map ----- +----------------------------------------------------+ | #??# =!] # # #?????????????????? | | #???# =]] # # #?????????????????? | | ????# =] # ] # #?????????????????? | | ????######+######/### #### #??????????? | | ??????# #??????????? | | ??????# #??????????? | | ??????# #??????????? | | ??????# ########### #######???????????? | | ??????# # = """ # #?????????????????? | | ??????# # "Y" # #?????????????????? | | ###+### # """ # #?????????????????? | | # """ # #?????????????????? | | + """ # #?????????????????? | | # # #?????????????????? | | ###+### #[ # #?????????????????? | | ??????# =# # #?????????????????? | | ??????# | ########### #?????????????????? | | ??????# *########### #?????????????????? | | ??????# %= #?????????????????? | | ??????# % #?????????????????? | | ??????# #?????????????????? | | ??????############### ##########????????? | | ????????###?????????# % # =%= #????????? | | ????????????????????# # !" " #????????? | | ????????????????????# # " #????????? | | ????????????????????# #@ """ #????????? | | ????????????????????# %Y=[ #????????? | | ????????????????????# *%#%Y """ #????????? | | ????????????????????# %=#** """ #????????? | | ????????????????????# %# %""" #????????? | | ??????????????????? + ?????????? | | ??????????????????#####+#########?????????? | | ??????????????????????????????????????????? | | ??????????????????????????????????????????? | | ??????????????????????????????????????????? | | ??????????????????????????????????????????? | | ??????????????????????????????????????????? | | ??????????????????????????????????????????? | | ??????????????????????????????????????????? | | ??????????????????????????????????????????? | | ??????????????????????????????????????????? | | ??????????????????????????????????????????? | | ??????????????????????????????????????????? | | ??????????????????????????????????????????? | | ??????????????????????????????????????????? | | ??????????????????????????????????????????? | | ??????????????????????????????????????????? | | ??????????????????????????????????????????? | | ??????????????????????????????????????????? | | ??????????????????????????????????????????? | +----------------------------------------------------+ Best States ------------- Heat Dissipation 28 Energy Generation 12 Energy Capacity 265 Matter Stores 300 Matter Capacity 300 Sight Range 16 Terrain Scan Density 10 Core Shielding 20 Evasion (%) 55 Item Schematics ----------------- None Robot Schematics ------------------ None Fabricated ------------ Nothing Alien Tech Used ----------------- None Achievements -------------- None Challenges ------------ None Game ------ Seed DiametricSapperMatrix Manual? 0 Play Time 00:08:34 Cumulative 107.4 hours Start 2023.12.10 @ 14:46:30 End 2023.12.10 @ 14:51:50 Sessions 1 Manual Loads 0 Difficulty Rogue Special Mode None Game No. 155 Rogue 155 Adventurer 0 Explorer 0 Win Type - Total 0 Types 0/0/0/0/0/0/0/0/0 Lore% 32 Gallery% 58 Achievement% 40 Wizard Run 0 Options --------- ASCII 0 Keyboard 0 Movement Mouse Keybinds 0 Fullscreen 2 Font 18/SmallcapsGlow Map View 76x50 Tactical HUD 1 Map Filters NONE Filters NONE Steam 1 RUN: 9d87db82-9639-43ee-9c76-e0f8fffccdcb